Workbook

Sheet 本利和自動計算
A1: 附表 ：本金、利息、違約金總合自動計算式 | L1: 本金 | M1: 利息 | N1: 違約金(年利率) | O1: 違約金(按月)
A3: 序號 | B3: 類型 | C3: 計算本金 | D3: 計息起算日 | E3: 計息末日 | F3: 年利率(%) | G3: 按月給付 | H3: 基數 | I3: 應付金額 | K3: 計應付金額 | L3: 年 | M3: 月 | N3: 日 | O3: 計日 | P3: 原年日數 | Q3: 調年日數 | R3: 計年日數 | S3: 本金前1日 | T3: 末年始月日 | U3: 滿年末年日
A4: 1.1 | B4: 本金 | C4: 90799 | H4: =IF( OR(C4="",IF(B4="本金",1,IF(B4="違約金(按月)",M4,L4+O4/R4))=0), "", IF(B4="本金",1,IF(B4="違約金(按月)",M4,L4+O4/R4)) ) -> 1 | I4: =IFERROR(IF(OR(B4="",K4=0),"",K4),"") -> 90799 | K4: =IFERROR(IF(B4="本金",C4*H4,IF(B4="違約金(按月)",G4*H4,C4*F4*H4)),0) -> 90799 | L4: =IFERROR(DATEDIF($D4-1,$E4,"y"),0) -> 0 | M4: =IFERROR(DATEDIF($D4-1,$E4,"m"),0) -> 0 | N4: =IFERROR(DATEDIF($D4-1,$E4,"yd"),0) -> 0 | O4: =IFERROR(IF(E4-U4<0,0,E4-U4),0) -> 0 | P4: =IFERROR(IF(T4<E4,DATE(YEAR(T4)+1,MONTH(T4),DAY(T4))-T4,IF(T4-DATE(YEAR(T4)-1,MONTH(T4),DAY(T4))<0,365,T4-DATE(YEAR(T4)-1,MONTH(T4),DAY(T4)))),365) -> 365 | Q4: =IF(P4<0,365,P4) -> 365 | R4: =IFERROR(DATE(YEAR(U4)+1,MONTH(U4),DAY(U4))-U4,365) -> 366 | S4: =IFERROR(D4-1,0) -> -1 | T4: =IFERROR(DATE(YEAR(E4),MONTH(S4),DAY(S4)),0) -> 00:00:00 | U4: =IF(T4>E4,DATE(YEAR(T4)-1,MONTH(T4),DAY(T4)),T4) -> 00:00:00
A5: =A4+0.1 -> 1.2 | B5: 利息 | C5: 88579 | D5: 2023-12-11 | E5: 2023-12-28 | F5: 0.0697 | H5: 0.04918032787 | I5: =IFERROR(IF(OR(B5="",K5=0),"",K5),"") -> 303.6371951 | K5: =IFERROR(IF(B5="本金",C5*H5,IF(B5="違約金(按月)",G5*H5,C5*F5*H5)),0) -> 303.6371951 | L5: =IFERROR(DATEDIF($D5-1,$E5,"y"),0) -> 0 | M5: =IFERROR(DATEDIF($D5-1,$E5,"m"),0) -> 0 | N5: =IFERROR(DATEDIF($D5-1,$E5,"yd"),0) -> 18 | O5: =IFERROR(IF(E5-U5<0,0,E5-U5),0) -> 18 | P5: =IFERROR(IF(T5<E5,DATE(YEAR(T5)+1,MONTH(T5),DAY(T5))-T5,IF(T5-DATE(YEAR(T5)-1,MONTH(T5),DAY(T5))<0,365,T5-DATE(YEAR(T5)-1,MONTH(T5),DAY(T5)))),365) -> 366 | Q5: =IF(P5<0,365,P5) -> 366 | R5: =IFERROR(DATE(YEAR(U5)+1,MONTH(U5),DAY(U5))-U5,365) -> 366 | S5: 2023-12-10 | T5: 2023-12-10 | U5: 2023-12-10
A6: =A5+0.1 -> 1.3 | B6: 違約金(年利率) | C6: 88579 | D6: 2023-12-11 | E6: 2023-12-28 | F6: 0.00697 | H6: 0.04918032787 | I6: 30.36371951 | K6: 30.36371951 | L6: 0 | M6: 0 | N6: 18 | O6: 18 | P6: 366 | Q6: 366 | R6: 366 | S6: 2023-12-10 | T6: 2023-12-10 | U6: 2023-12-10
A7: 1.4 | B7: 違約金(年利率) | K7: 0 | L7: 0 | M7: 0 | N7: 0 | O7: 0 | P7: 365 | Q7: 365 | R7: 366 | S7: -1 | T7: 00:00:00 | U7: 00:00:00
A8: =A4+1 -> 2.1 | B8: 本金 | K8: 0 | L8: 0 | M8: 0 | N8: 0 | O8: 0 | P8: 365 | Q8: 365 | R8: 366 | S8: -1 | T8: 00:00:00 | U8: 00:00:00
A9: =A8+0.1 -> 2.2 | B9: 利息 | K9: 0 | L9: 0 | M9: 0 | N9: 0 | O9: 0 | P9: 365 | Q9: 365 | R9: 366 | S9: -1 | T9: 00:00:00 | U9: 00:00:00
A10: 2.3 | B10: 違約金(年利率) | K10: 0 | L10: 0 | M10: 0 | N10: 0 | O10: 0 | P10: 365 | Q10: 365 | R10: 366 | S10: -1 | T10: 00:00:00 | U10: 00:00:00
A11: 2.4 | B11: 違約金(年利率) | K11: 0 | L11: 0 | M11: 0 | N11: 0 | O11: 0 | P11: 365 | Q11: 365 | R11: 366 | S11: -1 | T11: 00:00:00 | U11: 00:00:00
A12: =A8+1 -> 3.1 | B12: 本金 | K12: 0 | L12: 0 | M12: 0 | N12: 0 | O12: 0 | P12: 365 | Q12: 365 | R12: 366 | S12: -1 | T12: 00:00:00 | U12: 00:00:00
A13: =A12+0.1 -> 3.2 | B13: 利息 | K13: 0 | L13: 0 | M13: 0 | N13: 0 | O13: 0 | P13: 365 | Q13: 365 | R13: 366 | S13: -1 | T13: 00:00:00 | U13: 00:00:00
A14: 3.3 | B14: 違約金(年利率) | K14: 0 | L14: 0 | M14: 0 | N14: 0 | O14: 0 | P14: 365 | Q14: 365 | R14: 366 | S14: -1 | T14: 00:00:00 | U14: 00:00:00
A15: 3.4 | B15: 違約金(年利率) | K15: 0 | L15: 0 | M15: 0 | N15: 0 | O15: 0 | P15: 365 | Q15: 365 | R15: 366 | S15: -1 | T15: 00:00:00 | U15: 00:00:00
A16: =A12+1 -> 4.1 | B16: 本金 | K16: 0 | L16: 0 | M16: 0 | N16: 0 | O16: 0 | P16: 365 | Q16: 365 | R16: 366 | S16: -1 | T16: 00:00:00 | U16: 00:00:00
A17: =A16+0.1 -> 4.2 | B17: 利息 | K17: 0 | L17: 0 | M17: 0 | N17: 0 | O17: 0 | P17: 365 | Q17: 365 | R17: 366 | S17: -1 | T17: 00:00:00 | U17: 00:00:00
A18: 4.3 | B18: 違約金(年利率) | K18: 0 | L18: 0 | M18: 0 | N18: 0 | O18: 0 | P18: 365 | Q18: 365 | R18: 366 | S18: -1 | T18: 00:00:00 | U18: 00:00:00
A19: 4.4 | B19: 違約金(年利率) | K19: 0 | L19: 0 | M19: 0 | N19: 0 | O19: 0 | P19: 365 | Q19: 365 | R19: 366 | S19: -1 | T19: 00:00:00 | U19: 00:00:00
A20: 合計 | I20: =SUBTOTAL(109,自動計算表[應付金額]) -> 91133.00091 | K20: 0 | L20: 0 | M20: 0 | N20: 0 | O20: 0 | P20: 365 | Q20: 365 | R20: 366 | S20: -1 | T20: 00:00:00 | U20: 00:00:00
K21: 0 | L21: 0 | M21: 0 | N21: 0 | O21: 0 | P21: 365 | Q21: 365 | R21: 366 | S21: -1 | T21: 00:00:00 | U21: 00:00:00
K22: 0 | L22: 0 | M22: 0 | N22: 0 | O22: 0 | P22: 365 | Q22: 365 | R22: 366 | S22: -1 | T22: 00:00:00 | U22: 00:00:00
K23: 0 | L23: 0 | M23: 0 | N23: 0 | O23: 0 | P23: 365 | Q23: 365 | R23: 366 | S23: -1 | T23: 00:00:00 | U23: 00:00:00
K24: 0 | L24: 0 | M24: 0 | N24: 0 | O24: 0 | P24: 365 | Q24: 365 | R24: 366 | S24: -1 | T24: 00:00:00 | U24: 00:00:00
K25: 0 | L25: 0 | M25: 0 | N25: 0 | O25: 0 | P25: 365 | Q25: 365 | R25: 366 | S25: -1 | T25: 00:00:00 | U25: 00:00:00
K26: 0 | L26: 0 | M26: 0 | N26: 0 | O26: 0 | P26: 365 | Q26: 365 | R26: 366 | S26: -1 | T26: 00:00:00 | U26: 00:00:00
K27: 0 | L27: 0 | M27: 0 | N27: 0 | O27: 0 | P27: 365 | Q27: 365 | R27: 366 | S27: -1 | T27: 00:00:00 | U27: 00:00:00
K28: 0 | L28: 0 | M28: 0 | N28: 0 | O28: 0 | P28: 365 | Q28: 365 | R28: 366 | S28: -1 | T28: 00:00:00 | U28: 00:00:00
K29: 0 | L29: 0 | M29: 0 | N29: 0 | O29: 0 | P29: 365 | Q29: 365 | R29: 366 | S29: -1 | T29: 00:00:00 | U29: 00:00:00
K30: 0 | L30: 0 | M30: 0 | N30: 0 | O30: 0 | P30: 365 | Q30: 365 | R30: 366 | S30: -1 | T30: 00:00:00 | U30: 00:00:00
K31: 0 | L31: 0 | M31: 0 | N31: 0 | O31: 0 | P31: 365 | Q31: 365 | R31: 366 | S31: -1 | T31: 00:00:00 | U31: 00:00:00
K32: 0 | L32: 0 | M32: 0 | N32: 0 | O32: 0 | P32: 365 | Q32: 365 | R32: 366 | S32: -1 | T32: 00:00:00 | U32: 00:00:00
K33: 0 | L33: 0 | M33: 0 | N33: 0 | O33: 0 | P33: 365 | Q33: 365 | R33: 366 | S33: -1 | T33: 00:00:00 | U33: 00:00:00
K34: 0 | L34: 0 | M34: 0 | N34: 0 | O34: 0 | P34: 365 | Q34: 365 | R34: 366 | S34: -1 | T34: 00:00:00 | U34: 00:00:00
K35: 0 | L35: 0 | M35: 0 | N35: 0 | O35: 0 | P35: 365 | Q35: 365 | R35: 366 | S35: -1 | T35: 00:00:00 | U35: 00:00:00
K36: 0 | L36: 0 | M36: 0 | N36: 0 | O36: 0 | P36: 365 | Q36: 365 | R36: 366 | S36: -1 | T36: 00:00:00 | U36: 00:00:00
K37: 0 | L37: 0 | M37: 0 | N37: 0 | O37: 0 | P37: 365 | Q37: 365 | R37: 366 | S37: -1 | T37: 00:00:00 | U37: 00:00:00
K38: 0 | L38: 0 | M38: 0 | N38: 0 | O38: 0 | P38: 365 | Q38: 365 | R38: 366 | S38: -1 | T38: 00:00:00 | U38: 00:00:00
K39: 0 | L39: 0 | M39: 0 | N39: 0 | O39: 0 | P39: 365 | Q39: 365 | R39: 366 | S39: -1 | T39: 00:00:00 | U39: 00:00:00
K40: 0 | L40: 0 | M40: 0 | N40: 0 | O40: 0 | P40: 365 | Q40: 365 | R40: 366 | S40: -1 | T40: 00:00:00 | U40: 00:00:00
K41: 0 | L41: 0 | M41: 0 | N41: 0 | O41: 0 | P41: 365 | Q41: 365 | R41: 366 | S41: -1 | T41: 00:00:00 | U41: 00:00:00
K42: 0 | L42: 0 | M42: 0 | N42: 0 | O42: 0 | P42: 365 | Q42: 365 | R42: 366 | S42: -1 | T42: 00:00:00 | U42: 00:00:00
K43: 0 | L43: 0 | M43: 0 | N43: 0 | O43: 0 | P43: 365 | Q43: 365 | R43: 366 | S43: -1 | T43: 00:00:00 | U43: 00:00:00
K44: 0 | L44: 0 | M44: 0 | N44: 0 | O44: 0 | P44: 365 | Q44: 365 | R44: 366 | S44: -1 | T44: 00:00:00 | U44: 00:00:00
K45: 0 | L45: 0 | M45: 0 | N45: 0 | O45: 0 | P45: 365 | Q45: 365 | R45: 366 | S45: -1 | T45: 00:00:00 | U45: 00:00:00
K46: 0 | L46: 0 | M46: 0 | N46: 0 | O46: 0 | P46: 365 | Q46: 365 | R46: 366 | S46: -1 | T46: 00:00:00 | U46: 00:00:00
K47: 0 | L47: 0 | M47: 0 | N47: 0 | O47: 0 | P47: 365 | Q47: 365 | R47: 366 | S47: -1 | T47: 00:00:00 | U47: 00:00:00
K48: 0 | L48: 0 | M48: 0 | N48: 0 | O48: 0 | P48: 365 | Q48: 365 | R48: 366 | S48: -1 | T48: 00:00:00 | U48: 00:00:00
K49: 0 | L49: 0 | M49: 0 | N49: 0 | O49: 0 | P49: 365 | Q49: 365 | R49: 366 | S49: -1 | T49: 00:00:00 | U49: 00:00:00
K50: 0 | L50: 0 | M50: 0 | N50: 0 | O50: 0 | P50: 365 | Q50: 365 | R50: 366 | S50: -1 | T50: 00:00:00 | U50: 00:00:00
K51: 0 | L51: 0 | M51: 0 | N51: 0 | O51: 0 | P51: 365 | Q51: 365 | R51: 366 | S51: -1 | T51: 00:00:00 | U51: 00:00:00
K52: 0 | L52: 0 | M52: 0 | N52: 0 | O52: 0 | P52: 365 | Q52: 365 | R52: 366 | S52: -1 | T52: 00:00:00 | U52: 00:00:00
K53: 0 | L53: 0 | M53: 0 | N53: 0 | O53: 0 | P53: 365 | Q53: 365 | R53: 366 | S53: -1 | T53: 00:00:00 | U53: 00:00:00
K54: 0 | L54: 0 | M54: 0 | N54: 0 | O54: 0 | P54: 365 | Q54: 365 | R54: 366 | S54: -1 | T54: 00:00:00 | U54: 00:00:00
K55: 0 | L55: 0 | M55: 0 | N55: 0 | O55: 0 | P55: 365 | Q55: 365 | R55: 366 | S55: -1 | T55: 00:00:00 | U55: 00:00:00
K56: 0 | L56: 0 | M56: 0 | N56: 0 | O56: 0 | P56: 365 | Q56: 365 | R56: 366 | S56: -1 | T56: 00:00:00 | U56: 00:00:00
K57: 0 | L57: 0 | M57: 0 | N57: 0 | O57: 0 | P57: 365 | Q57: 365 | R57: 366 | S57: -1 | T57: 00:00:00 | U57: 00:00:00
K58: 0 | L58: 0 | M58: 0 | N58: 0 | O58: 0 | P58: 365 | Q58: 365 | R58: 366 | S58: -1 | T58: 00:00:00 | U58: 00:00:00
K59: 0 | L59: 0 | M59: 0 | N59: 0 | O59: 0 | P59: 365 | Q59: 365 | R59: 366 | S59: -1 | T59: 00:00:00 | U59: 00:00:00
K60: 0 | L60: 0 | M60: 0 | N60: 0 | O60: 0 | P60: 365 | Q60: 365 | R60: 366 | S60: -1 | T60: 00:00:00 | U60: 00:00:00
K61: 0 | L61: 0 | M61: 0 | N61: 0 | O61: 0 | P61: 365 | Q61: 365 | R61: 366 | S61: -1 | T61: 00:00:00 | U61: 00:00:00
K62: 0 | L62: 0 | M62: 0 | N62: 0 | O62: 0 | P62: 365 | Q62: 365 | R62: 366 | S62: -1 | T62: 00:00:00 | U62: 00:00:00
K63: 0 | L63: 0 | M63: 0 | N63: 0 | O63: 0 | P63: 365 | Q63: 365 | R63: 366 | S63: -1 | T63: 00:00:00 | U63: 00:00:00
K64: 0 | L64: 0 | M64: 0 | N64: 0 | O64: 0 | P64: 365 | Q64: 365 | R64: 366 | S64: -1 | T64: 00:00:00 | U64: 00:00:00
K65: 0 | L65: 0 | M65: 0 | N65: 0 | O65: 0 | P65: 365 | Q65: 365 | R65: 366 | S65: -1 | T65: 00:00:00 | U65: 00:00:00
K66: 0 | L66: 0 | M66: 0 | N66: 0 | O66: 0 | P66: 365 | Q66: 365 | R66: 366 | S66: -1 | T66: 00:00:00 | U66: 00:00:00
K67: 0 | L67: 0 | M67: 0 | N67: 0 | O67: 0 | P67: 365 | Q67: 365 | R67: 366 | S67: -1 | T67: 00:00:00 | U67: 00:00:00
K68: 0 | L68: 0 | M68: 0 | N68: 0 | O68: 0 | P68: 365 | Q68: 365 | R68: 366 | S68: =IFERROR(D68-1,0) -> -1 | T68: =IFERROR(DATE(YEAR(E68),MONTH(S68),DAY(S68)),0) -> 00:00:00 | U68: =IF(T68>E68,DATE(YEAR(T68)-1,MONTH(T68),DAY(T68)),T68) -> 00:00:00
K69: =IFERROR(IF(B69="本金",C69*H69,IF(B69="違約金(按月)",G69*H69,C69*F69*H69)),0) -> 0 | L69: =IFERROR(DATEDIF($D69-1,$E69,"y"),0) -> 0 | M69: =IFERROR(DATEDIF($D69-1,$E69,"m"),0) -> 0 | N69: =IFERROR(DATEDIF($D69-1,$E69,"yd"),0) -> 0 | O69: =IFERROR(IF(E69-U69<0,0,E69-U69),0) -> 0 | P69: =IFERROR(IF(T69<E69,DATE(YEAR(T69)+1,MONTH(T69),DAY(T69))-T69,IF(T69-DATE(YEAR(T69)-1,MONTH(T69),DAY(T69))<0,365,T69-DATE(YEAR(T69)-1,MONTH(T69),DAY(T69)))),365) -> 365 | Q69: =IF(P69<0,365,P69) -> 365 | R69: =IFERROR(DATE(YEAR(U69)+1,MONTH(U69),DAY(U69))-U69,365) -> 366 | S69: -1 | T69: 00:00:00 | U69: 00:00:00
K70: 0 | L70: 0 | M70: 0 | N70: 0 | O70: 0 | P70: 365 | Q70: 365 | R70: 366 | S70: -1 | T70: 00:00:00 | U70: 00:00:00
K71: 0 | L71: 0 | M71: 0 | N71: 0 | O71: 0 | P71: 365 | Q71: 365 | R71: 366 | S71: -1 | T71: 00:00:00 | U71: 00:00:00
K72: 0 | L72: 0 | M72: 0 | N72: 0 | O72: 0 | P72: 365 | Q72: 365 | R72: 366 | S72: -1 | T72: 00:00:00 | U72: 00:00:00
K73: 0 | L73: 0 | M73: 0 | N73: 0 | O73: 0 | P73: 365 | Q73: 365 | R73: 366 | S73: -1 | T73: 00:00:00 | U73: 00:00:00
K74: 0 | L74: 0 | M74: 0 | N74: 0 | O74: 0 | P74: 365 | Q74: 365 | R74: 366 | S74: -1 | T74: 00:00:00 | U74: 00:00:00
K75: 0 | L75: 0 | M75: 0 | N75: 0 | O75: 0 | P75: 365 | Q75: 365 | R75: 366 | S75: -1 | T75: 00:00:00 | U75: 00:00:00
K76: 0 | L76: 0 | M76: 0 | N76: 0 | O76: 0 | P76: 365 | Q76: 365 | R76: 366 | S76: -1 | T76: 00:00:00 | U76: 00:00:00
K77: 0 | L77: 0 | M77: 0 | N77: 0 | O77: 0 | P77: 365 | Q77: 365 | R77: 366 | S77: -1 | T77: 00:00:00 | U77: 00:00:00
K78: 0 | L78: 0 | M78: 0 | N78: 0 | O78: 0 | P78: 365 | Q78: 365 | R78: 366 | S78: -1 | T78: 00:00:00 | U78: 00:00:00
K79: 0 | L79: 0 | M79: 0 | N79: 0 | O79: 0 | P79: 365 | Q79: 365 | R79: 366 | S79: -1 | T79: 00:00:00 | U79: 00:00:00
K80: 0 | L80: 0 | M80: 0 | N80: 0 | O80: 0 | P80: 365 | Q80: 365 | R80: 366 | S80: -1 | T80: 00:00:00 | U80: 00:00:00
K81: 0 | L81: 0 | M81: 0 | N81: 0 | O81: 0 | P81: 365 | Q81: 365 | R81: 366 | S81: -1 | T81: 00:00:00 | U81: 00:00:00
K82: 0 | L82: 0 | M82: 0 | N82: 0 | O82: 0 | P82: 365 | Q82: 365 | R82: 366 | S82: -1 | T82: 00:00:00 | U82: 00:00:00
K83: 0 | L83: 0 | M83: 0 | N83: 0 | O83: 0 | P83: 365 | Q83: 365 | R83: 366 | S83: -1 | T83: 00:00:00 | U83: 00:00:00
K84: 0 | L84: 0 | M84: 0 | N84: 0 | O84: 0 | P84: 365 | Q84: 365 | R84: 366 | S84: -1 | T84: 00:00:00 | U84: 00:00:00
K85: 0 | L85: 0 | M85: 0 | N85: 0 | O85: 0 | P85: 365 | Q85: 365 | R85: 366 | S85: -1 | T85: 00:00:00 | U85: 00:00:00
K86: 0 | L86: 0 | M86: 0 | N86: 0 | O86: 0 | P86: 365 | Q86: 365 | R86: 366 | S86: -1 | T86: 00:00:00 | U86: 00:00:00
K87: 0 | L87: 0 | M87: 0 | N87: 0 | O87: 0 | P87: 365 | Q87: 365 | R87: 366 | S87: -1 | T87: 00:00:00 | U87: 00:00:00
K88: 0 | L88: 0 | M88: 0 | N88: 0 | O88: 0 | P88: 365 | Q88: 365 | R88: 366 | S88: -1 | T88: 00:00:00 | U88: 00:00:00
K89: 0 | L89: 0 | M89: 0 | N89: 0 | O89: 0 | P89: 365 | Q89: 365 | R89: 366 | S89: -1 | T89: 00:00:00 | U89: 00:00:00
K90: 0 | L90: 0 | M90: 0 | N90: 0 | O90: 0 | P90: 365 | Q90: 365 | R90: 366 | S90: -1 | T90: 00:00:00 | U90: 00:00:00
K91: 0 | L91: 0 | M91: 0 | N91: 0 | O91: 0 | P91: 365 | Q91: 365 | R91: 366 | S91: -1 | T91: 00:00:00 | U91: 00:00:00
K92: 0 | L92: 0 | M92: 0 | N92: 0 | O92: 0 | P92: 365 | Q92: 365 | R92: 366 | S92: -1 | T92: 00:00:00 | U92: 00:00:00
K93: 0 | L93: 0 | M93: 0 | N93: 0 | O93: 0 | P93: 365 | Q93: 365 | R93: 366 | S93: -1 | T93: 00:00:00 | U93: 00:00:00
K94: 0 | L94: 0 | M94: 0 | N94: 0 | O94: 0 | P94: 365 | Q94: 365 | R94: 366 | S94: -1 | T94: 00:00:00 | U94: 00:00:00
K95: 0 | L95: 0 | M95: 0 | N95: 0 | O95: 0 | P95: 365 | Q95: 365 | R95: 366 | S95: -1 | T95: 00:00:00 | U95: 00:00:00
K96: 0 | L96: 0 | M96: 0 | N96: 0 | O96: 0 | P96: 365 | Q96: 365 | R96: 366 | S96: -1 | T96: 00:00:00 | U96: 00:00:00
K97: 0 | L97: 0 | M97: 0 | N97: 0 | O97: 0 | P97: 365 | Q97: 365 | R97: 366 | S97: -1 | T97: 00:00:00 | U97: 00:00:00
K98: 0 | L98: 0 | M98: 0 | N98: 0 | O98: 0 | P98: 365 | Q98: 365 | R98: 366 | S98: -1 | T98: 00:00:00 | U98: 00:00:00
K99: 0 | L99: 0 | M99: 0 | N99: 0 | O99: 0 | P99: 365 | Q99: 365 | R99: 366 | S99: -1 | T99: 00:00:00 | U99: 00:00:00
K100: 0 | L100: 0 | M100: 0 | N100: 0 | O100: 0 | P100: 365 | Q100: 365 | R100: 366 | S100: -1 | T100: 00:00:00 | U100: 00:00:00
K101: 0 | L101: 0 | M101: 0 | N101: 0 | O101: 0 | P101: 365 | Q101: 365 | R101: 366 | S101: -1 | T101: 00:00:00 | U101: 00:00:00
K102: 0 | L102: 0 | M102: 0 | N102: 0 | O102: 0 | P102: 365 | Q102: 365 | R102: 366 | S102: -1 | T102: 00:00:00 | U102: 00:00:00
K103: 0 | L103: 0 | M103: 0 | N103: 0 | O103: 0 | P103: 365 | Q103: 365 | R103: 366 | S103: -1 | T103: 00:00:00 | U103: 00:00:00
K104: 0 | L104: 0 | M104: 0 | N104: 0 | O104: 0 | P104: 365 | Q104: 365 | R104: 366 | S104: -1 | T104: 00:00:00 | U104: 00:00:00
K105: 0 | L105: 0 | M105: 0 | N105: 0 | O105: 0 | P105: 365 | Q105: 365 | R105: 366 | S105: -1 | T105: 00:00:00 | U105: 00:00:00
K106: 0 | L106: 0 | M106: 0 | N106: 0 | O106: 0 | P106: 365 | Q106: 365 | R106: 366 | S106: -1 | T106: 00:00:00 | U106: 00:00:00
K107: 0 | L107: 0 | M107: 0 | N107: 0 | O107: 0 | P107: 365 | Q107: 365 | R107: 366 | S107: -1 | T107: 00:00:00 | U107: 00:00:00
K108: 0 | L108: 0 | M108: 0 | N108: 0 | O108: 0 | P108: 365 | Q108: 365 | R108: 366 | S108: -1 | T108: 00:00:00 | U108: 00:00:00
K109: 0 | L109: 0 | M109: 0 | N109: 0 | O109: 0 | P109: 365 | Q109: 365 | R109: 366 | S109: -1 | T109: 00:00:00 | U109: 00:00:00
K110: 0 | L110: 0 | M110: 0 | N110: 0 | O110: 0 | P110: 365 | Q110: 365 | R110: 366 | S110: -1 | T110: 00:00:00 | U110: 00:00:00
K111: 0 | L111: 0 | M111: 0 | N111: 0 | O111: 0 | P111: 365 | Q111: 365 | R111: 366 | S111: -1 | T111: 00:00:00 | U111: 00:00:00
K112: 0 | L112: 0 | M112: 0 | N112: 0 | O112: 0 | P112: 365 | Q112: 365 | R112: 366 | S112: -1 | T112: 00:00:00 | U112: 00:00:00
K113: 0 | L113: 0 | M113: 0 | N113: 0 | O113: 0 | P113: 365 | Q113: 365 | R113: 366 | S113: -1 | T113: 00:00:00 | U113: 00:00:00
K114: 0 | L114: 0 | M114: 0 | N114: 0 | O114: 0 | P114: 365 | Q114: 365 | R114: 366 | S114: -1 | T114: 00:00:00 | U114: 00:00:00
K115: 0 | L115: 0 | M115: 0 | N115: 0 | O115: 0 | P115: 365 | Q115: 365 | R115: 366 | S115: -1 | T115: 00:00:00 | U115: 00:00:00
K116: 0 | L116: 0 | M116: 0 | N116: 0 | O116: 0 | P116: 365 | Q116: 365 | R116: 366 | S116: -1 | T116: 00:00:00 | U116: 00:00:00
K117: 0 | L117: 0 | M117: 0 | N117: 0 | O117: 0 | P117: 365 | Q117: 365 | R117: 366 | S117: -1 | T117: 00:00:00 | U117: 00:00:00
K118: 0 | L118: 0 | M118: 0 | N118: 0 | O118: 0 | P118: 365 | Q118: 365 | R118: 366 | S118: -1 | T118: 00:00:00 | U118: 00:00:00
K119: 0 | L119: 0 | M119: 0 | N119: 0 | O119: 0 | P119: 365 | Q119: 365 | R119: 366 | S119: -1 | T119: 00:00:00 | U119: 00:00:00
K120: 0 | L120: 0 | M120: 0 | N120: 0 | O120: 0 | P120: 365 | Q120: 365 | R120: 366 | S120: -1 | T120: 00:00:00 | U120: 00:00:00
K121: 0 | L121: 0 | M121: 0 | N121: 0 | O121: 0 | P121: 365 | Q121: 365 | R121: 366 | S121: -1 | T121: 00:00:00 | U121: 00:00:00
K122: 0 | L122: 0 | M122: 0 | N122: 0 | O122: 0 | P122: 365 | Q122: 365 | R122: 366 | S122: -1 | T122: 00:00:00 | U122: 00:00:00
K123: 0 | L123: 0 | M123: 0 | N123: 0 | O123: 0 | P123: 365 | Q123: 365 | R123: 366 | S123: -1 | T123: 00:00:00 | U123: 00:00:00
K124: 0 | L124: 0 | M124: 0 | N124: 0 | O124: 0 | P124: 365 | Q124: 365 | R124: 366 | S124: -1 | T124: 00:00:00 | U124: 00:00:00
K125: 0 | L125: 0 | M125: 0 | N125: 0 | O125: 0 | P125: 365 | Q125: 365 | R125: 366 | S125: -1 | T125: 00:00:00 | U125: 00:00:00
K126: 0 | L126: 0 | M126: 0 | N126: 0 | O126: 0 | P126: 365 | Q126: 365 | R126: 366 | S126: -1 | T126: 00:00:00 | U126: 00:00:00
K127: 0 | L127: 0 | M127: 0 | N127: 0 | O127: 0 | P127: 365 | Q127: 365 | R127: 366 | S127: -1 | T127: 00:00:00 | U127: 00:00:00
K128: 0 | L128: 0 | M128: 0 | N128: 0 | O128: 0 | P128: 365 | Q128: 365 | R128: 366 | S128: -1 | T128: 00:00:00 | U128: 00:00:00
K129: 0 | L129: 0 | M129: 0 | N129: 0 | O129: 0 | P129: 365 | Q129: 365 | R129: 366 | S129: -1 | T129: 00:00:00 | U129: 00:00:00
K130: 0 | L130: 0 | M130: 0 | N130: 0 | O130: 0 | P130: 365 | Q130: 365 | R130: 366 | S130: -1 | T130: 00:00:00 | U130: 00:00:00
K131: 0 | L131: 0 | M131: 0 | N131: 0 | O131: 0 | P131: 365 | Q131: 365 | R131: 366 | S131: -1 | T131: 00:00:00 | U131: 00:00:00
K132: 0 | L132: 0 | M132: 0 | N132: 0 | O132: 0 | P132: 365 | Q132: 365 | R132: 366 | S132: =IFERROR(D132-1,0) -> -1 | T132: =IFERROR(DATE(YEAR(E132),MONTH(S132),DAY(S132)),0) -> 00:00:00 | U132: =IF(T132>E132,DATE(YEAR(T132)-1,MONTH(T132),DAY(T132)),T132) -> 00:00:00
K133: =IFERROR(IF(B133="本金",C133*H133,IF(B133="違約金(按月)",G133*H133,C133*F133*H133)),0) -> 0 | L133: =IFERROR(DATEDIF($D133-1,$E133,"y"),0) -> 0 | M133: =IFERROR(DATEDIF($D133-1,$E133,"m"),0) -> 0 | N133: =IFERROR(DATEDIF($D133-1,$E133,"yd"),0) -> 0 | O133: =IFERROR(IF(E133-U133<0,0,E133-U133),0) -> 0 | P133: =IFERROR(IF(T133<E133,DATE(YEAR(T133)+1,MONTH(T133),DAY(T133))-T133,IF(T133-DATE(YEAR(T133)-1,MONTH(T133),DAY(T133))<0,365,T133-DATE(YEAR(T133)-1,MONTH(T133),DAY(T133)))),365) -> 365 | Q133: =IF(P133<0,365,P133) -> 365 | R133: =IFERROR(DATE(YEAR(U133)+1,MONTH(U133),DAY(U133))-U133,365) -> 366 | S133: -1 | T133: 00:00:00 | U133: 00:00:00
K134: 0 | L134: 0 | M134: 0 | N134: 0 | O134: 0 | P134: 365 | Q134: 365 | R134: 366 | S134: -1 | T134: 00:00:00 | U134: 00:00:00
K135: 0 | L135: 0 | M135: 0 | N135: 0 | O135: 0 | P135: 365 | Q135: 365 | R135: 366 | S135: -1 | T135: 00:00:00 | U135: 00:00:00
K136: 0 | L136: 0 | M136: 0 | N136: 0 | O136: 0 | P136: 365 | Q136: 365 | R136: 366 | S136: -1 | T136: 00:00:00 | U136: 00:00:00
K137: 0 | L137: 0 | M137: 0 | N137: 0 | O137: 0 | P137: 365 | Q137: 365 | R137: 366 | S137: -1 | T137: 00:00:00 | U137: 00:00:00
K138: 0 | L138: 0 | M138: 0 | N138: 0 | O138: 0 | P138: 365 | Q138: 365 | R138: 366 | S138: -1 | T138: 00:00:00 | U138: 00:00:00
K139: 0 | L139: 0 | M139: 0 | N139: 0 | O139: 0 | P139: 365 | Q139: 365 | R139: 366 | S139: -1 | T139: 00:00:00 | U139: 00:00:00
K140: 0 | L140: 0 | M140: 0 | N140: 0 | O140: 0 | P140: 365 | Q140: 365 | R140: 366 | S140: -1 | T140: 00:00:00 | U140: 00:00:00
K141: 0 | L141: 0 | M141: 0 | N141: 0 | O141: 0 | P141: 365 | Q141: 365 | R141: 366 | S141: -1 | T141: 00:00:00 | U141: 00:00:00
K142: 0 | L142: 0 | M142: 0 | N142: 0 | O142: 0 | P142: 365 | Q142: 365 | R142: 366 | S142: -1 | T142: 00:00:00 | U142: 00:00:00
K143: 0 | L143: 0 | M143: 0 | N143: 0 | O143: 0 | P143: 365 | Q143: 365 | R143: 366 | S143: -1 | T143: 00:00:00 | U143: 00:00:00
K144: 0 | L144: 0 | M144: 0 | N144: 0 | O144: 0 | P144: 365 | Q144: 365 | R144: 366 | S144: -1 | T144: 00:00:00 | U144: 00:00:00
K145: 0 | L145: 0 | M145: 0 | N145: 0 | O145: 0 | P145: 365 | Q145: 365 | R145: 366 | S145: -1 | T145: 00:00:00 | U145: 00:00:00
K146: 0 | L146: 0 | M146: 0 | N146: 0 | O146: 0 | P146: 365 | Q146: 365 | R146: 366 | S146: -1 | T146: 00:00:00 | U146: 00:00:00
K147: 0 | L147: 0 | M147: 0 | N147: 0 | O147: 0 | P147: 365 | Q147: 365 | R147: 366 | S147: -1 | T147: 00:00:00 | U147: 00:00:00
K148: 0 | L148: 0 | M148: 0 | N148: 0 | O148: 0 | P148: 365 | Q148: 365 | R148: 366 | S148: -1 | T148: 00:00:00 | U148: 00:00:00
K149: 0 | L149: 0 | M149: 0 | N149: 0 | O149: 0 | P149: 365 | Q149: 365 | R149: 366 | S149: -1 | T149: 00:00:00 | U149: 00:00:00
K150: 0 | L150: 0 | M150: 0 | N150: 0 | O150: 0 | P150: 365 | Q150: 365 | R150: 366 | S150: -1 | T150: 00:00:00 | U150: 00:00:00
K151: 0 | L151: 0 | M151: 0 | N151: 0 | O151: 0 | P151: 365 | Q151: 365 | R151: 366 | S151: -1 | T151: 00:00:00 | U151: 00:00:00
K152: 0 | L152: 0 | M152: 0 | N152: 0 | O152: 0 | P152: 365 | Q152: 365 | R152: 366 | S152: -1 | T152: 00:00:00 | U152: 00:00:00
K153: 0 | L153: 0 | M153: 0 | N153: 0 | O153: 0 | P153: 365 | Q153: 365 | R153: 366 | S153: -1 | T153: 00:00:00 | U153: 00:00:00
K154: 0 | L154: 0 | M154: 0 | N154: 0 | O154: 0 | P154: 365 | Q154: 365 | R154: 366 | S154: -1 | T154: 00:00:00 | U154: 00:00:00
K155: 0 | L155: 0 | M155: 0 | N155: 0 | O155: 0 | P155: 365 | Q155: 365 | R155: 366 | S155: -1 | T155: 00:00:00 | U155: 00:00:00
K156: 0 | L156: 0 | M156: 0 | N156: 0 | O156: 0 | P156: 365 | Q156: 365 | R156: 366 | S156: -1 | T156: 00:00:00 | U156: 00:00:00
K157: 0 | L157: 0 | M157: 0 | N157: 0 | O157: 0 | P157: 365 | Q157: 365 | R157: 366 | S157: -1 | T157: 00:00:00 | U157: 00:00:00
K158: 0 | L158: 0 | M158: 0 | N158: 0 | O158: 0 | P158: 365 | Q158: 365 | R158: 366 | S158: -1 | T158: 00:00:00 | U158: 00:00:00
K159: 0 | L159: 0 | M159: 0 | N159: 0 | O159: 0 | P159: 365 | Q159: 365 | R159: 366 | S159: -1 | T159: 00:00:00 | U159: 00:00:00
K160: 0 | L160: 0 | M160: 0 | N160: 0 | O160: 0 | P160: 365 | Q160: 365 | R160: 366 | S160: -1 | T160: 00:00:00 | U160: 00:00:00
K161: 0 | L161: 0 | M161: 0 | N161: 0 | O161: 0 | P161: 365 | Q161: 365 | R161: 366 | S161: -1 | T161: 00:00:00 | U161: 00:00:00
K162: 0 | L162: 0 | M162: 0 | N162: 0 | O162: 0 | P162: 365 | Q162: 365 | R162: 366 | S162: -1 | T162: 00:00:00 | U162: 00:00:00
K163: 0 | L163: 0 | M163: 0 | N163: 0 | O163: 0 | P163: 365 | Q163: 365 | R163: 366 | S163: -1 | T163: 00:00:00 | U163: 00:00:00
K164: 0 | L164: 0 | M164: 0 | N164: 0 | O164: 0 | P164: 365 | Q164: 365 | R164: 366 | S164: -1 | T164: 00:00:00 | U164: 00:00:00
K165: 0 | L165: 0 | M165: 0 | N165: 0 | O165: 0 | P165: 365 | Q165: 365 | R165: 366 | S165: -1 | T165: 00:00:00 | U165: 00:00:00
K166: 0 | L166: 0 | M166: 0 | N166: 0 | O166: 0 | P166: 365 | Q166: 365 | R166: 366 | S166: -1 | T166: 00:00:00 | U166: 00:00:00
K167: 0 | L167: 0 | M167: 0 | N167: 0 | O167: 0 | P167: 365 | Q167: 365 | R167: 366 | S167: -1 | T167: 00:00:00 | U167: 00:00:00
K168: 0 | L168: 0 | M168: 0 | N168: 0 | O168: 0 | P168: 365 | Q168: 365 | R168: 366 | S168: -1 | T168: 00:00:00 | U168: 00:00:00
K169: 0 | L169: 0 | M169: 0 | N169: 0 | O169: 0 | P169: 365 | Q169: 365 | R169: 366 | S169: -1 | T169: 00:00:00 | U169: 00:00:00
K170: 0 | L170: 0 | M170: 0 | N170: 0 | O170: 0 | P170: 365 | Q170: 365 | R170: 366 | S170: -1 | T170: 00:00:00 | U170: 00:00:00
K171: 0 | L171: 0 | M171: 0 | N171: 0 | O171: 0 | P171: 365 | Q171: 365 | R171: 366 | S171: -1 | T171: 00:00:00 | U171: 00:00:00
K172: 0 | L172: 0 | M172: 0 | N172: 0 | O172: 0 | P172: 365 | Q172: 365 | R172: 366 | S172: -1 | T172: 00:00:00 | U172: 00:00:00
K173: 0 | L173: 0 | M173: 0 | N173: 0 | O173: 0 | P173: 365 | Q173: 365 | R173: 366 | S173: -1 | T173: 00:00:00 | U173: 00:00:00
K174: 0 | L174: 0 | M174: 0 | N174: 0 | O174: 0 | P174: 365 | Q174: 365 | R174: 366 | S174: -1 | T174: 00:00:00 | U174: 00:00:00
K175: 0 | L175: 0 | M175: 0 | N175: 0 | O175: 0 | P175: 365 | Q175: 365 | R175: 366 | S175: -1 | T175: 00:00:00 | U175: 00:00:00
K176: 0 | L176: 0 | M176: 0 | N176: 0 | O176: 0 | P176: 365 | Q176: 365 | R176: 366 | S176: -1 | T176: 00:00:00 | U176: 00:00:00
K177: 0 | L177: 0 | M177: 0 | N177: 0 | O177: 0 | P177: 365 | Q177: 365 | R177: 366 | S177: -1 | T177: 00:00:00 | U177: 00:00:00
K178: 0 | L178: 0 | M178: 0 | N178: 0 | O178: 0 | P178: 365 | Q178: 365 | R178: 366 | S178: -1 | T178: 00:00:00 | U178: 00:00:00
K179: 0 | L179: 0 | M179: 0 | N179: 0 | O179: 0 | P179: 365 | Q179: 365 | R179: 366 | S179: -1 | T179: 00:00:00 | U179: 00:00:00
K180: 0 | L180: 0 | M180: 0 | N180: 0 | O180: 0 | P180: 365 | Q180: 365 | R180: 366 | S180: -1 | T180: 00:00:00 | U180: 00:00:00
K181: 0 | L181: 0 | M181: 0 | N181: 0 | O181: 0 | P181: 365 | Q181: 365 | R181: 366 | S181: -1 | T181: 00:00:00 | U181: 00:00:00
K182: 0 | L182: 0 | M182: 0 | N182: 0 | O182: 0 | P182: 365 | Q182: 365 | R182: 366 | S182: -1 | T182: 00:00:00 | U182: 00:00:00
K183: 0 | L183: 0 | M183: 0 | N183: 0 | O183: 0 | P183: 365 | Q183: 365 | R183: 366 | S183: -1 | T183: 00:00:00 | U183: 00:00:00
K184: 0 | L184: 0 | M184: 0 | N184: 0 | O184: 0 | P184: 365 | Q184: 365 | R184: 366 | S184: -1 | T184: 00:00:00 | U184: 00:00:00
K185: 0 | L185: 0 | M185: 0 | N185: 0 | O185: 0 | P185: 365 | Q185: 365 | R185: 366 | S185: -1 | T185: 00:00:00 | U185: 00:00:00
K186: 0 | L186: 0 | M186: 0 | N186: 0 | O186: 0 | P186: 365 | Q186: 365 | R186: 366 | S186: -1 | T186: 00:00:00 | U186: 00:00:00
K187: 0 | L187: 0 | M187: 0 | N187: 0 | O187: 0 | P187: 365 | Q187: 365 | R187: 366 | S187: -1 | T187: 00:00:00 | U187: 00:00:00
K188: 0 | L188: 0 | M188: 0 | N188: 0 | O188: 0 | P188: 365 | Q188: 365 | R188: 366 | S188: -1 | T188: 00:00:00 | U188: 00:00:00
K189: 0 | L189: 0 | M189: 0 | N189: 0 | O189: 0 | P189: 365 | Q189: 365 | R189: 366 | S189: -1 | T189: 00:00:00 | U189: 00:00:00
K190: 0 | L190: 0 | M190: 0 | N190: 0 | O190: 0 | P190: 365 | Q190: 365 | R190: 366 | S190: -1 | T190: 00:00:00 | U190: 00:00:00
K191: 0 | L191: 0 | M191: 0 | N191: 0 | O191: 0 | P191: 365 | Q191: 365 | R191: 366 | S191: -1 | T191: 00:00:00 | U191: 00:00:00
K192: 0 | L192: 0 | M192: 0 | N192: 0 | O192: 0 | P192: 365 | Q192: 365 | R192: 366 | S192: -1 | T192: 00:00:00 | U192: 00:00:00
K193: 0 | L193: 0 | M193: 0 | N193: 0 | O193: 0 | P193: 365 | Q193: 365 | R193: 366 | S193: -1 | T193: 00:00:00 | U193: 00:00:00
K194: 0 | L194: 0 | M194: 0 | N194: 0 | O194: 0 | P194: 365 | Q194: 365 | R194: 366 | S194: -1 | T194: 00:00:00 | U194: 00:00:00
K195: 0 | L195: 0 | M195: 0 | N195: 0 | O195: 0 | P195: 365 | Q195: 365 | R195: 366 | S195: -1 | T195: 00:00:00 | U195: 00:00:00
K196: 0 | L196: 0 | M196: 0 | N196: 0 | O196: 0 | P196: 365 | Q196: 365 | R196: 366 | S196: =IFERROR(D196-1,0) -> -1 | T196: =IFERROR(DATE(YEAR(E196),MONTH(S196),DAY(S196)),0) -> 00:00:00 | U196: =IF(T196>E196,DATE(YEAR(T196)-1,MONTH(T196),DAY(T196)),T196) -> 00:00:00
K197: =IFERROR(IF(B197="本金",C197*H197,IF(B197="違約金(按月)",G197*H197,C197*F197*H197)),0) -> 0 | L197: =IFERROR(DATEDIF($D197-1,$E197,"y"),0) -> 0 | M197: =IFERROR(DATEDIF($D197-1,$E197,"m"),0) -> 0 | N197: =IFERROR(DATEDIF($D197-1,$E197,"yd"),0) -> 0 | O197: =IFERROR(IF(E197-U197<0,0,E197-U197),0) -> 0 | P197: =IFERROR(IF(T197<E197,DATE(YEAR(T197)+1,MONTH(T197),DAY(T197))-T197,IF(T197-DATE(YEAR(T197)-1,MONTH(T197),DAY(T197))<0,365,T197-DATE(YEAR(T197)-1,MONTH(T197),DAY(T197)))),365) -> 365 | Q197: =IF(P197<0,365,P197) -> 365 | R197: =IFERROR(DATE(YEAR(U197)+1,MONTH(U197),DAY(U197))-U197,365) -> 366 | S197: -1 | T197: 00:00:00 | U197: 00:00:00
K198: 0 | L198: 0 | M198: 0 | N198: 0 | O198: 0 | P198: 365 | Q198: 365 | R198: 366 | S198: -1 | T198: 00:00:00 | U198: 00:00:00
K199: 0 | L199: 0 | M199: 0 | N199: 0 | O199: 0 | P199: 365 | Q199: 365 | R199: 366 | S199: -1 | T199: 00:00:00 | U199: 00:00:00
K200: 0 | L200: 0 | M200: 0 | N200: 0 | O200: 0 | P200: 365 | Q200: 365 | R200: 366 | S200: -1 | T200: 00:00:00 | U200: 00:00:00
K201: 0 | L201: 0 | M201: 0 | N201: 0 | O201: 0 | P201: 365 | Q201: 365 | R201: 366 | S201: -1 | T201: 00:00:00 | U201: 00:00:00
... 2799 more rows

Sheet 自動計算裁判費
A1: 附表 ：訴訟費用計算表( | B1: 1.一般訴訟費用 | C1: ) | G1: 1.一般訴訟費用
G2: 2.超過100萬免徵
A3: 訴訟標的價(金)額 | B3: 第一審徵收標準 | C3: 第二、三審徵收標準 | D3: 第一審裁判費 | E3: 第二、三審裁判費 | G3: 減萬 | H3: 訴訟標的 | I3: 括 | J3: 一審費率 | K3: 二、三審費率 | L3: 一審基本費 | M3: 二、三審基本費 | N3: 介於 | O3: 幾萬
A4: 10萬元以下 | B4: 1,000元 | C4: 1,500元 | D4: =IFERROR(IF($O$4>0,L4,0),"") -> 1000 | E4: =IFERROR(IF($O$4>0,M4,0),"") -> 1500 | G4: 10 | H4: 1e-10 | I4: 逾 | J4: 0 | K4: 0 | L4: 1000 | M4: 1500 | N4: =IF(AND(A11>0,A11<=100000),1,0) -> 1 | O4: =MIN(ROUNDUP($A$11/10000,0),10) -> 10
A5: 逾10萬元～100萬元部分 | B5: 110元/萬 | C5: 165元/萬 | D5: =IFERROR(J5*$G5,"") -> 0 | E5: 0 | G5: =O5-O4 -> 0 | H5: 100000.001 | I5: 逾 | J5: 110 | K5: 165 | L5: 10900 | M5: 16350 | N5: =IF(AND(A11>100000,A11<=1000000),1,0) -> 0 | O5: =MIN(ROUNDUP($A$11/10000,0),100) -> 10
A6: 逾100萬元～一千萬元部分 | B6: 99元/萬 | C6: 148.5元/萬 | D6: 0 | E6: 0 | G6: =O6-O5 -> 0 | H6: 1000000.001 | I6: 逾 | J6: 99 | K6: 148.5 | L6: 100000 | M6: 150000 | N6: =IF(AND(A11>1000000,A11<=10000000),1,0) -> 0 | O6: =IF(B1="2.超過100萬免徵",MIN(100,MIN(ROUNDUP($A$11/10000,0),1000)),MIN(ROUNDUP($A$11/10000,0),1000)) -> 10
A7: 逾一千萬元～一億元部分 | B7: 88元/萬 | C7: 132元/萬 | D7: 0 | E7: 0 | G7: =O7-O6 -> 0 | H7: 10000000 | I7: 逾 | J7: 88 | K7: 132 | L7: 892000 | M7: 1338000 | N7: =IF(AND(A11>10000000,A11<=100000000),1,0) -> 0 | O7: =IF(B1="2.超過100萬免徵",MIN(100,MIN(ROUNDUP($A$11/10000,0),10000)),MIN(ROUNDUP($A$11/10000,0),10000)) -> 10
A8: 逾一億元～十億元部分 | B8: 77元/萬 | C8: 115.5元/萬 | D8: 0 | E8: 0 | G8: =O8-O7 -> 0 | H8: 100000000 | I8: 逾 | J8: 77 | K8: 115.5 | L8: 77822000 | M8: 11733000 | N8: =IF(AND(A11>100000000,A11<=1000000000),1,0) -> 0 | O8: =IF(B1="2.超過100萬免徵",MIN(100,MIN(ROUNDUP($A$11/10000,0),100000)),MIN(ROUNDUP($A$11/10000,0),100000)) -> 10
A9: 逾十億元部分 | B9: 66元/萬 | C9: 99元/萬 | D9: 0 | E9: 0 | G9: =O9-O8 -> 0 | H9: 1000000000 | I9: 逾 | J9: 66 | K9: 99 | N9: =IF(A11>1000000000,1,0) -> 0 | O9: =IF(B1="2.超過100萬免徵",MIN(100,MIN(ROUNDUP($A$11/10000,0),1000000)),MIN(ROUNDUP($A$11/10000,0),1000000)) -> 10
A10: 訴訟標的價(金)額 | C10: 應徵收裁判費 | D10: =IFERROR(ROUNDDOWN(SUM(D4:D9),0),"") -> 1000 | E10: =IFERROR(ROUNDDOWN(SUM(E4:E9),0),"") -> 1500
A11: =自動計算表[[#Totals],[應付金額]] -> 91133.00091 | C11: 已繳裁判費
C12: 應補繳裁判費 | D12: =IFERROR(D10-D11,"") -> 1000 | E12: =IFERROR(E10-E11,"") -> 1500
B13: (勞工)扣除免徴2/3後應徵收之裁判費 | D13: =IFERROR(ROUNDDOWN(D10/3,0),"") -> 333 | E13: =IFERROR(ROUNDDOWN(E10/3,0),"") -> 500
B14: 已繳裁判費 | D14: =D11 -> 0 | E14: =E11 -> 0
B15: (勞工)扣除免徴2/3後應補繳之裁判費 | D15: =IFERROR(D13-D14,"") -> 333 | E15: =IFERROR(E13-E14,"") -> 500
A17: 勞動事件法第12條第1項：「因確認僱傭關係或給付工資、退休金或資遣費涉訟，勞工或工會起訴或上訴，暫免徵收裁判費三分之二。」
A18: 勞動事件法第13條：「工會依民事訴訟法第四十四條之一及本法第四十二條提起之訴訟，其訴訟標的金額或價額超過新臺幣一百萬元者，超過部分暫免徵收裁判費。工會依第四十條規定提起之訴訟，免徵裁判費。」

Sheet 使用說明
B2: 輸入說明
C3: 黃色「儲存格」均可自行填入文字或數值
C4: 點選「本金」、「利息」、「違約金」，右方會出現倒三角型，可切換類型
C5: 日期輸入格式：「民國年/月/日」
B7: 計算說明
C8: 給付期間：計息起算日與計息末日均計入
C9: 基數計算：自計息起算日起算，滿1年為1，加計未滿年之日數除年日歷天
C10: 基數實例：112/3/5至113/4/3之基數=1+30/365
C11: 按月給付之違約金：不足一月不計
B13: 試算結果僅係服務性質並供參考，實際仍應以法院裁判結果為準
B14: 本試算表由何君豪法官設計。聯絡方式：kelsonnono@gmail.com
